Cogmind - Beta 14 @@@ ROGUE MODE // 2024.11.17 @ 15:24:29 Player: Mathewnd Result: Destroyed by P-70 Sage with Tesla Rifle Performance ------------- Evolutions (6) 3000 Regions Visited (14) 2800 Robots Destroyed (49) 245 Value Destroyed (1870) 1870 Prototype IDs (32) 640 Alien Tech Used (0) 0 Bonus (1149) 1149 TOTAL SCORE: 9704 Bonus ------- Follower Combat Kills 49 Entered DSFs 500 Aligned with FarCom 300 Met Data Miner 300 Cogmind --------- Core Integrity 0/1150 Matter 260/300 Energy 58/100 System Corruption 4% Temperature Cool (0) Movement Core (500) Ox9 Location -4/Factory Parts ------- > --- POWER (4) -------- (None) > --- PROPULSION (5) --- (None) > --- UTILITY (6) ------ Advanced Terrain Scan Processor > --- WEAPON (4) ------- Railgun Hardcell Cannon Hardcell Cannon Heavy Pick > --- INVENTORY (5) ---- (None) Peak State ------------ > --- POWER ------------ Fission Core Light Fission Core Neutrino Core > --- PROPULSION ------- Flexi-carbon Leg Armored Leg Improved VSS Leg Potential Leg Potential Leg > --- UTILITY ---------- Improved Thermal Generator Improved Heat Sink Medium Storage Unit Advanced Visual Processing Unit Advanced Terrain Scan Processor Medium Reactive Plating > --- WEAPON ----------- Proton Cannon Proton Cannon Disruptor Cannon Gauss Rifle > --- INVENTORY -------- Carbon-fiber Leg Carbon-fiber Leg Improved Cryofiber Web Hardcell Cannon Hardcell Cannon Hardcell Cannon Heavy Pick [Rating: 94] Favorites ----------- Power Fission Core Engine Light Deuterium Engine Power Core Fission Core Propulsion Potential Leg Leg Potential Leg Flight Unit Flight Unit Utility Medium Storage Unit Device Improved Heat Sink Storage Medium Storage Unit Processor Advanced Visual Processing Unit Protection Medium Reactive Plating Weapon Plasma Rifle Energy Gun Plasma Rifle Energy Cannon Plasma Cannon Ballistic Gun Gauss Rifle Ballistic Cannon Hardcell Cannon Launcher Shock Bomb Launcher Special Weapon Mining Laser Piercing Weapon Heavy Pick Build | -11 -10 -9 -9 -9 -8 -8 -7 -7 -7 -6 -6 -5 -5 -4 ------- Run | Yrd Mat Mat Min Exi Min Mat Fac Low Dat Pro Fac Fac DSF Fac Slots Evolved 12 | . . 2 . . . 2 2 . . . 2 2 . 2 Power 3 | . . . . . . . 1 . . . . 1 . 1 Propulsion 3 | . . 2 . . . . . . . . . . . 1 Utility 4 | . . . . . . 2 1 . . . 1 . . . Weapon 2 | . . . . . . . . . . . 1 1 . . Parts Attached 95 | 7 3 6 . 2 1 12 4 2 . 10 17 4 11 16 Power 19 | 1 . 2 . . . 2 1 . . 2 3 2 2 4 Engine 5 | 1 . 2 . . . 2 . . . . . . . . Core 14 | . . . . . . . 1 . . 2 3 2 2 4 Reactor . | . . . . . . . . . . . . . . . Propulsion 27 | 2 2 2 . 2 1 2 . . . 3 3 1 3 6 Treads . | . . . . . . . . . . . . . . . Leg 25 | 2 . 2 . 2 1 2 . . . 3 3 1 3 6 Wheel . | . . . . . . . . . . . . . . . Hover . | . . . . . . . . . . . . . . . Flight 2 | . 2 . . . . . . . . . . . . . Utility 21 | 1 1 2 . . . 5 1 2 . 2 5 . 1 1 Device 14 | . 1 1 . . . 3 1 1 . 2 4 . . 1 Storage 2 | 1 . . . . . 1 . . . . . . . . Processor 4 | . . 1 . . . 1 . 1 . . . . 1 . Hackware . | . . . . . . . . . . . . . . . Protection 1 | . . . . . . . . . . . 1 . . . Artifact . | . . . . . . . . . . . . . . . Weapon 28 | 3 . . . . . 3 2 . . 3 6 1 5 5 Energy Gun 3 | 2 . . . . . . . . . 1 . . . . Energy Cannon 10 | . . . . . . . 1 . . 2 3 1 3 . Ballistic Gun 6 | 1 . . . . . 2 1 . . . 1 . . 1 Ballistic Cannon 3 | . . . . . . . . . . . . . . 3 Launcher 3 | . . . . . . 1 . . . . 1 . 1 . Special Weapon 1 | . . . . . . . . . . . 1 . . . Impact Weapon . | . . . . . . . . . . . . . . . Slashing Weapon . | . . . . . . . . . . . . . . . Piercing Weapon 2 | . . . . . . . . . . . . . 1 1 Special Melee Weapon . | . . . . . . . . . . . . . . . Unidentified Prototypes . | . . . . . . . . . . . . . . . Parts Lost 44 | . . . . . 1 7 . . . 2 8 . 6 20 Power 8 | . . . . . . 3 . . . . 1 . 1 3 Propulsion 13 | . . . . . 1 2 . . . 1 1 . 1 7 Utility 12 | . . . . . . 1 . . . 1 3 . 2 5 Weapon 11 | . . . . . . 1 . . . . 3 . 2 5 Highest Loss Streak 16 | . . . . . 1 3 . . . 1 6 . 3 16 To Critical Strikes . | . . . . . . . . . . . . . . . Average Slot Usage (%) 93 | . 77 90 100 99 90 98 77 89 92 98 96 94 86 80 Engine 3 | . 14 11 11 11 11 8 . . . . . . . . Core 7 | . . . . . . . 4 7 7 14 12 17 12 10 Leg 28 | . 9 18 22 37 35 35 30 30 30 29 26 23 21 23 Flight 1 | . 18 22 22 5 . . . . . . . . . . Device 17 | . 1 11 11 11 11 17 13 20 23 21 22 17 12 9 Storage 5 | . 4 . . . . 8 7 7 7 7 6 5 5 4 Processor 7 | . . 5 11 11 11 9 7 7 7 7 6 5 6 10 Protection 1 | . . . . . . . . . . . 2 5 5 1 Energy Gun 4 | . 14 11 11 11 11 1 . . . 6 4 . . . Energy Cannon 5 | . . . . . . . 4 7 7 7 8 11 13 13 Ballistic Gun 6 | . 14 11 11 11 11 15 . . . . 2 5 5 2 Peak Build Rating 94 | 6 6 12 12 30 30 40 45 47 47 66 78 87 84 94 Average Rating 53 | 4 5 8 12 24 29 36 40 46 47 62 73 83 77 78 On Entrance 37 | . 6 6 12 12 30 30 31 45 47 47 66 78 84 75 Naked Turns . | . . . . . . . . . . . . . . . Heaviest Build 100 | 10 10 8 8 8 8 30 33 34 34 56 80 94 94 100 Greatest Support 111 | 20 20 8 8 80 80 80 80 80 80 96 92 96 96 111 Greatest Overweight (x) 9 | 1 2 . . . . . . . . . . . 1 9 Average Overweight (x) . | . . . . . . . . . . . . . . . Largest Inventory Capacity 10 | 8 8 5 5 5 5 10 10 10 10 10 10 10 10 10 Average Capacity 9 | 7 6 5 5 5 5 9 10 10 10 10 10 10 10 9 Most Carried 10 | 6 8 5 5 5 5 10 10 10 9 10 10 10 10 9 Average Carried 7 | 3 5 4 5 4 4 8 7 9 9 9 8 9 9 6 Final Capacity 10 | 8 5 5 5 5 5 10 10 10 10 10 10 10 10 5 Final Carried 10 | 6 5 5 5 5 5 5 10 9 9 10 10 10 10 . Class Distribution -------------------- 41% | Skirmisher 22% | Mutant 9% | Derelict-Tank 9% | Derelict-Mutant 9% | Scavenger-Mutant 4% | Scavenger-Skirmisher 3% | Generator-Skirmisher Dominant Class ---------------- Mutant | -10/Materials Mutant | -9/Materials Mutant | -9/Mines Mutant | -9/Exiles Skirmisher | -8/Mines Skirmisher | -8/Materials Scavenger-Mutant | -7/Factory Mutant | -7/Lower Caves Mutant | -7/Data Miner Mutant | -6/Proximity Caves Derelict-Tank | -6/Factory Skirmisher | -5/Factory Skirmisher | -5/DSF Skirmisher | -4/Factory Resources | -11 -10 -9 -9 -9 -8 -8 -7 -7 -7 -6 -6 -5 -5 -4 ----------- Run | Yrd Mat Mat Min Exi Min Mat Fac Low Dat Pro Fac Fac DSF Fac Matter Collected 1475 | 172 142 28 . . 87 281 . 49 . 234 181 . 263 38 Remotely . | . . . . . . . . . . . . . . . Salvage Created 1868 | . 155 82 . . 62 602 44 . . 224 292 . 317 90 Parts 110 | . 11 4 . . 2 40 4 . . 17 10 . 12 10 Haulers Intercepted . | . . . . . . . . . . . . . . . Recyclers Shooed 1 | . . . . . . . . . . . . . . 1 Parts Field Recycled . | . . . . . . . . . . . . . . . Retrieved Matter . | . . . . . . . . . . . . . . . Parts Self-Destructed 17 | . . . . . . . . . . 17 . . . . Prevented . | . . . . . . . . . . . . . . . Kills | -11 -10 -9 -9 -9 -8 -8 -7 -7 -7 -6 -6 -5 -5 -4 ------- Run | Yrd Mat Mat Min Exi Min Mat Fac Low Dat Pro Fac Fac DSF Fac Combat Hostiles Destroyed 42 | . 6 1 . . 2 12 1 . . 8 7 . 4 1 Guns 21 | . 6 1 . . 2 5 . . . 3 3 . 1 . Cannons 12 | . . . . . . . 1 . . 4 3 . 3 1 AOE 8 | . . . . . . 7 . . . . 1 . . . Classes Destroyed 11 | . 2 2 . . 1 1 1 . . . . . 2 2 Builder 1 | . . . . . . 1 . . . . . . . . Tunneler 1 | . . . . . . . . . . . . . . 1 Operator 1 | . . . . . . . . . . . . . . 1 Watcher 4 | . . 1 . . . 2 . . . . . . . 1 Swarmer 16 | . 3 . . . 1 4 . . . 7 . . . 1 Grunt 9 | . 3 . . . . 5 . . . . 1 . . . Sentry 5 | . . 1 . . . 3 . . . . 1 . . . Specialist 2 | . . . . . . . . . . . . . 2 . Hunter 4 | . . . . . 1 . . . . 1 1 . 1 . Programmer 5 | . . . . . . . 1 . . . 4 . . . Butcher 1 | . . . . . . . . . . . . . 1 . Best Kill Streak 4 | . 3 1 . . 1 3 1 . . 4 1 . 2 1 Combat Bots Only 4 | . 3 1 . . 1 3 1 . . 4 1 . 2 1 Max Kills in Single Turn 2 | . 1 1 . . 1 2 1 . . 1 1 . 2 1 Gunslinging . | . . . . . . . . . . . . . . . Exploded 2 | . . . . . . 2 . . . . 1 . . . Melee . | . . . . . . . . . . . . . . . Uniques/NPCs Destroyed . | . . . . . . . . . . . . . . . Combat | -11 -10 -9 -9 -9 -8 -8 -7 -7 -7 -6 -6 -5 -5 -4 -------- Run | Yrd Mat Mat Min Exi Min Mat Fac Low Dat Pro Fac Fac DSF Fac Hostile Shots Fired 823 | . 37 17 . . 31 107 5 . . 62 178 . 56 330 Missed 341 | . 14 6 . . 15 45 4 . . 20 74 . 18 145 Damage Taken 7478 | . 210 157 . . 199 939 14 . . 624 1214 . 888 3233 Core 1729 | . 78 44 . . 71 83 . . . 107 100 . 83 1163 Absorbed by Shields 527 | . . . . . . . . . . . 503 . 24 . Ignored by Resistances 313 | . . . . . . . . . . . 14 . 299 . Regen/Repaired (Parts) 228 | . . . . . . . . . . . 87 . . 141 Core Remaining (%) 83 | 100 68 . . . 71 84 . . . 84 88 . 91 . Volleys Fired 184 | . 17 18 . . 9 47 2 . . 17 56 . 12 6 Largest 4 | . 2 2 . . 2 2 2 . . 2 3 . 4 4 Hottest 296 | . 60 60 . . 60 63 116 . . 155 234 . 259 296 Shots Fired 337 | . 27 36 . . 18 80 4 . . 34 90 . 30 18 Gun 210 | . 27 36 . . 18 63 . . . 16 36 . 12 2 Cannon 98 | . . . . . . . 2 . . 17 47 . 16 16 Launcher 26 | . . . . . . 17 2 . . 1 4 . 2 . Special 3 | . . . . . . . . . . . 3 . . . Kinetic 131 | . 17 18 . . 9 62 . . . . 7 . 12 6 Thermal 150 | . 10 18 . . 9 1 2 . . 33 76 . 1 . Explosive 6 | . . . . . . . . . . . 4 . 2 . Electromagnetic 50 | . . . . . . 17 2 . . 1 3 . 15 12 Robot Hit Streak 14 | . 8 5 . . 10 14 4 . . 3 5 . 5 7 Robot Miss Streak 7 | . 2 6 . . 2 7 . . . 6 3 . 3 1 Penetration Max . | . . . . . . . . . . . . . . . Secondary Targets 1 | . 1 . . . . . . . . . . . . . Max Gunslinging Chain 1 | . 1 . . . . . . . . . . . . . Shots Hit Robots 156 | . 16 20 . . 14 30 3 . . 14 33 . 15 11 Core Hits 79 | . 9 7 . . 3 24 1 . . 8 13 . 8 6 Critical Kills 2 | . . . . . 1 1 . . . . . . . . Critical Parts Destroyed 2 | . . 1 . . . 1 . . . . . . . . Critical Strikes 7 | . . 1 . . 1 2 . . . 1 2 . . . Burn 3 | . . . . . . . . . . 1 2 . . . Destroy 4 | . . 1 . . 1 2 . . . . . . . . Melee Attacks . | . . . . . . . . . . . . . . . Impact . | . . . . . . . . . . . . . . . Slashing . | . . . . . . . . . . . . . . . Piercing . | . . . . . . . . . . . . . . . Sneak Attacks . | . . . . . . . . . . . . . . . Combat Hostiles . | . . . . . . . . . . . . . . . Follow-up Attacks . | . . . . . . . . . . . . . . . Damage Inflicted 4155 | . 156 189 . . 114 1172 82 . . 367 1110 . 562 403 Guns 1490 | . 156 189 . . 114 437 . . . 154 283 . 116 41 Cannons 1285 | . . . . . . . 64 . . 177 568 . 201 275 Explosions 1249 | . . . . . . 735 3 . . 36 230 . 245 . Melee . | . . . . . . . . . . . . . . . Ramming 131 | . . . . . . . 15 . . . 29 . . 87 Kinetic 863 | . 78 78 . . 49 427 . . . . . . 116 115 Thermal 1509 | . 78 111 . . 65 73 64 . . 331 787 . . . Explosive 475 | . . . . . . . . . . . 230 . 245 . Electromagnetic 1177 | . . . . . . 672 3 . . 36 64 . 201 201 Impact . | . . . . . . . . . . . . . . . Slashing . | . . . . . . . . . . . . . . . Piercing . | . . . . . . . . . . . . . . . Highest Corruption 4 | . . . . . . 2 . . . . 4 . 1 4 Average Corruption 1 | . . . . . . 1 . . . . 1 . 1 1 Corruption Purged . | . . . . . . . . . . . . . . . Corruption Blocked . | . . . . . . . . . . . . . . . Effects 24 | . . . . . . 4 . . . . 17 . 2 1 Message Errors 7 | . . . . . . 1 . . . . 5 . . 1 Matter Fused 5 | . . . . . . 1 . . . . 4 . . . Heat Flow Errors 3 | . . . . . . 1 . . . . 2 . . . Energy Discharges 1 | . . . . . . . . . . . 1 . . . Parts Rejected 2 | . . . . . . . . . . . . . 2 . Parts Fused 1 | . . . . . . . . . . . 1 . . . Data Loss (minor) 1 | . . . . . . . . . . . 1 . . . Data Loss (major) 1 | . . . . . . . . . . . 1 . . . Misfires 2 | . . . . . . . . . . . 2 . . . Weapon Failures 1 | . . . . . . 1 . . . . . . . . Overload Shots . | . . . . . . . . . . . . . . . Overflow Damage 195 | . . . . . . 64 . . . 6 116 . . 9 Projectiles 74 | . . . . . . . . . . . 74 . . . Explosions 112 | . . . . . . 64 . . . 6 42 . . . Melee 9 | . . . . . . . . . . . . . . 9 Knockbacks 1 | . . . . . . . . . . . . . . 1 Impact 1 | . . . . . . . . . . . . . . 1 Kinetic . | . . . . . . . . . . . . . . . Secondary . | . . . . . . . . . . . . . . . Self-Inflicted Damage 130 | . . . . . . 89 . . . 2 39 . . . Shots 5 | . . . . . . 3 . . . 1 1 . . . Rammed . | . . . . . . . . . . . . . . . Targets Rammed 13 | . . . . . . . 1 . . . 3 . . 9 Kicked 13 | . . . . . . . 1 . . . 3 . . 9 Crushed . | . . . . . . . . . . . . . . . Highest Temperature 401 | . 102 53 . . 32 266 . . . 285 401 . 75 289 Average Temperature 87 | . 38 20 . . 14 58 . . . 118 109 . 30 125 Received Heat Transfer 1044 | . 48 81 . . 27 243 . . . 39 174 . . 432 Effects 4 | . . . . . . . . . . . 4 . . . Shutdowns 1 | . . . . . . . . . . . 1 . . . Interference 3 | . . . . . . . . . . . 3 . . . Siege Activations . | . . . . . . . . . . . . . . . Robots Corrupted 1 | . . . . . . . . . . . . . . 1 Combat Hostiles . | . . . . . . . . . . . . . . . Parts Fried 8 | . . . . . . 2 . . . . . . 1 5 Impact Corruptions 1 | . . . . . . . . . . . . . . 1 Robots Melted 1 | . . . . . . . . . . 1 . . . . Combat Hostiles 1 | . . . . . . . . . . 1 . . . . Parts Melted 14 | . . . . . 2 . . . . 2 10 . . . Heat Transferred 3100 | . 175 250 . . 150 75 100 . . 800 1550 . . . Parts Sabotaged . | . . . . . . . . . . . . . . . Parts Stolen . | . . . . . . . . . . . . . . . Parts Stripped . | . . . . . . . . . . . . . . . Power Chain Reactions 3 | . . . . . . 3 . . . . . . . . Alert | -11 -10 -9 -9 -9 -8 -8 -7 -7 -7 -6 -6 -5 -5 -4 ------- Run | Yrd Mat Mat Min Exi Min Mat Fac Low Dat Pro Fac Fac DSF Fac Peak Influence 937 | . 174 170 66 . 87 274 154 . . . 937 94 209 170 Initial 912 | . . 73 66 . . . 109 . . . 912 94 65 109 Average 189 | . 82 143 66 . 47 55 72 . . . 427 94 118 82 Maximum Alert Level 3 | . . . . . . 1 . . . . 3 . 1 . Low Security (%) 64 | 100 100 100 100 . 100 91 100 . . . . 100 99 100 Level 1 24 | . . . . . . 8 . . . . 66 . . . Level 2 5 | . . . . . . . . . . . 16 . . . Level 3 5 | . . . . . . . . . . . 16 . . . Level 4 . | . . . . . . . . . . . . . . . Level 5 . | . . . . . . . . . . . . . . . High Security . | . . . . . . . . . . . . . . . Max Security . | . . . . . . . . . . . . . . . Sterilizations 1 | . . . . . . . . . . . . . 1 . Squads Dispatched 21 | . 2 . . . . 1 1 . . . 6 . 3 8 Investigation 1 | . 1 . . . . . . . . . . . . . Extermination 7 | . . . . . . . 1 . . . 4 . . 2 Reinforcement 13 | . 1 . . . . 1 . . . . 2 . 3 6 Assault . | . . . . . . . . . . . . . . . Garrison . | . . . . . . . . . . . . . . . Intercept . | . . . . . . . . . . . . . . . Searches Triggered 2 | . . . . . . . . . . . 2 . . . Construction Impeded 1 | . . . . . . . . . . . . . . 1 Haulers Reinforced 1 | . . . . . . . . . . . . . . 1 Active Scanning Responses . | . . . . . . . . . . . . . . . Cargo Convoy Interrupts . | . . . . . . . . . . . . . . . Stealth | -11 -10 -9 -9 -9 -8 -8 -7 -7 -7 -6 -6 -5 -5 -4 --------- Run | Yrd Mat Mat Min Exi Min Mat Fac Low Dat Pro Fac Fac DSF Fac Distress Signals 8 | . . 1 . . . 3 . . . 1 . . . 3 Communications Jammed . | . . . . . . . . . . . . . . . Distress Signals . | . . . . . . . . . . . . . . . Times Spotted 159 | . 7 11 . . 7 29 4 . . 34 21 . 11 35 Peak Tracking Total 21 | . 4 6 . . 4 6 3 . . 7 6 . 5 21 Tactical Retreats 22 | . . . . . . 5 . . . 5 3 . 4 5 Traps | -11 -10 -9 -9 -9 -8 -8 -7 -7 -7 -6 -6 -5 -5 -4 ------- Run | Yrd Mat Mat Min Exi Min Mat Fac Low Dat Pro Fac Fac DSF Fac Traps Triggered 5 | . 1 . . . . . . . . . 2 . 1 1 Indirectly . | . . . . . . . . . . . . . . . Trap Hack Attempts . | . . . . . . . . . . . . . . . Triggered . | . . . . . . . . . . . . . . . Disarmed . | . . . . . . . . . . . . . . . Reprogrammed . | . . . . . . . . . . . . . . . Reused . | . . . . . . . . . . . . . . . Traps Extracted . | . . . . . . . . . . . . . . . Installed . | . . . . . . . . . . . . . . . Triggered 2 | . . . . . . . . . . 2 . . . . Machines | -11 -10 -9 -9 -9 -8 -8 -7 -7 -7 -6 -6 -5 -5 -4 ---------- Run | Yrd Mat Mat Min Exi Min Mat Fac Low Dat Pro Fac Fac DSF Fac Machines Disabled 6 | . . . . . . 4 1 . . . . . . 1 Max in Single Turn 1 | . . . . . . 1 1 . . . . . . 1 Machines Repaired . | . . . . . . . . . . . . . . . Machines Dismantled . | . . . . . . . . . . . . . . . Machines Sabotaged . | . . . . . . . . . . . . . . . Overloaded Fab Kills . | . . . . . . . . . . . . . . . Hacking | -11 -10 -9 -9 -9 -8 -8 -7 -7 -7 -6 -6 -5 -5 -4 --------- Run | Yrd Mat Mat Min Exi Min Mat Fac Low Dat Pro Fac Fac DSF Fac Machines Accessed 16 | . 1 . . 1 . 1 1 . 4 . 4 2 . 2 Terminals 6 | . 1 . . . . 1 . . . . 2 2 . . Fabricators . | . . . . . . . . . . . . . . . Repair Stations 5 | . . . . . . . 1 . . . 2 . . 2 Recycling Units . | . . . . . . . . . . . . . . . Scanalyzers . | . . . . . . . . . . . . . . . Garrison Access . | . . . . . . . . . . . . . . . Total Hacks 59 | . 4 . . 1 . 5 1 . 31 . 8 3 . 6 Successful 51 | . 2 . . 1 . 3 . . 31 . 7 1 . 6 Failed 8 | . 2 . . . . 2 1 . . . 1 2 . . Catastrophic 3 | . . . . . . 1 . . . . 1 1 . . Database Lockouts . | . . . . . . . . . . . . . . . Manual 1 | . . . . 1 . . . . . . . . . . Terminals 16 | . 4 . . . . 5 . . . . 4 3 . . Fabricators . | . . . . . . . . . . . . . . . Repair Stations 11 | . . . . . . . 1 . . . 4 . . 6 Recycling Units . | . . . . . . . . . . . . . . . Scanalyzers . | . . . . . . . . . . . . . . . Garrison Access . | . . . . . . . . . . . . . . . Terminal Hacks 41 | . 2 . . 1 . 3 . . 31 . 3 1 . . Record 13 | . . . . . . 1 . . 11 . 1 . . . Part Schematic 13 | . . . . . . . . . 12 . 1 . . . Robot Schematic 5 | . . . . . . . . . 5 . . . . . Prototype ID Bank 3 | . . . . . . . . . 3 . . . . . Open DSF 1 | . . . . . . . . . . . . 1 . . Emergency Access Points 1 | . 1 . . . . . . . . . . . . . Alert Level 1 | . . . . . . . . . . . 1 . . . Dispatch Records 1 | . . . . . . 1 . . . . . . . . Zone Layout 2 | . 1 . . . . 1 . . . . . . . . Derelict Proto ID Bank 1 | . . . . 1 . . . . . . . . . . Fabricator Hacks . | . . . . . . . . . . . . . . . Repair Station Hacks 10 | . . . . . . . . . . . 4 . . 6 Scan Component 5 | . . . . . . . . . . . 2 . . 3 Repair 4 | . . . . . . . . . . . 1 . . 3 Refit 1 | . . . . . . . . . . . 1 . . . Recycling Unit Hacks . | . . . . . . . . . . . . . . . Scanalyzer . | . . . . . . . . . . . . . . . Garrison Access Hacks . | . . . . . . . . . . . . . . . Unauthorized Hacks . | . . . . . . . . . . . . . . . Terminals . | . . . . . . . . . . . . . . . Fabricators . | . . . . . . . . . . . . . . . Repair Stations . | . . . . . . . . . . . . . . . Recycling Units . | . . . . . . . . . . . . . . . Scanalyzers . | . . . . . . . . . . . . . . . Garrison Access . | . . . . . . . . . . . . . . . Data Cores Recovered 1 | . . . . . . . . . . . . . . 1 Used . | . . . . . . . . . . . . . . . Hacking Detections 7 | . 1 . . . . 1 1 . . . 2 1 . 1 Full Trace Events . | . . . . . . . . . . . . . . . Feedback Events . | . . . . . . . . . . . . . . . Feedback Blocked . | . . . . . . . . . . . . . . . Robot Schematics Acquired 5 | . . . . . . . . . 5 . . . . . Robots Built . | . . . . . . . . . . . . . . . Authchips . | . . . . . . . . . . . . . . . Time . | . . . . . . . . . . . . . . . Total Robot Build Rating . | . . . . . . . . . . . . . . . Part Schematics Acquired 13 | . . . . . . . . . 12 . 1 . . . Parts Built . | . . . . . . . . . . . . . . . Authchips . | . . . . . . . . . . . . . . . Time . | . . . . . . . . . . . . . . . Total Part Build Rating . | . . . . . . . . . . . . . . . Parts Repaired 4 | . . . . . . . . . . . 1 . . 3 Time 175 | . . . . . . . . . . . 50 . . 125 Parts Recycled . | . . . . . . . . . . . . . . . Recycled Matter . | . . . . . . . . . . . . . . . Retrieved Matter . | . . . . . . . . . . . . . . . Retrieved Components . | . . . . . . . . . . . . . . . Parts Scanalyzed . | . . . . . . . . . . . . . . . Part Schematics Acquired . | . . . . . . . . . . . . . . . Parts Damaged . | . . . . . . . . . . . . . . . Bothacking | -11 -10 -9 -9 -9 -8 -8 -7 -7 -7 -6 -6 -5 -5 -4 ------------ Run | Yrd Mat Mat Min Exi Min Mat Fac Low Dat Pro Fac Fac DSF Fac Used RIF Installer . | . . . . . . . . . . . . . . . Robots Hacked . | . . . . . . . . . . . . . . . Non-combat . | . . . . . . . . . . . . . . . Combat . | . . . . . . . . . . . . . . . Robot Hacks Applied . | . . . . . . . . . . . . . . . Relay Couplers Released . | . . . . . . . . . . . . . . . Fabnet Peak Effective % . | . . . . . . . . . . . . . . . Robots Rewired . | . . . . . . . . . . . . . . . Allies Hacked . | . . . . . . . . . . . . . . . Hacks Repelled . | . . . . . . . . . . . . . . . Allies | -11 -10 -9 -9 -9 -8 -8 -7 -7 -7 -6 -6 -5 -5 -4 -------- Run | Yrd Mat Mat Min Exi Min Mat Fac Low Dat Pro Fac Fac DSF Fac Total Allies 4 | . . . 4 . . . . . . . . . . . Largest Group 4 | . . . 4 4 3 . . . . . . . . . Highest-Rated Group 71 | . . . 71 71 40 . . . . . . . . . Highest-Rated Ally 31 | . . . 31 31 16 . . . . . . . . . Total Orders . | . . . . . . . . . . . . . . . Ally Attacks 31 | . . . . . 31 . . . . . . . . . Total Damage 362 | . . . . . 362 . . . . . . . . . Kills 4 | . . . . . 4 . . . . . . . . . Allies Corrupted . | . . . . . . . . . . . . . . . Allies Melted . | . . . . . . . . . . . . . . . Intel | -11 -10 -9 -9 -9 -8 -8 -7 -7 -7 -6 -6 -5 -5 -4 ------- Run | Yrd Mat Mat Min Exi Min Mat Fac Low Dat Pro Fac Fac DSF Fac Robot Analysis Total . | . . . . . . . . . . . . . . . Derelict Logs Recovered 1 | . . . 1 . . . . . . . . . . . Drone Launches . | . . . . . . . . . . . . . . . Drone Recoveries . | . . . . . . . . . . . . . . . Exploration | -11 -10 -9 -9 -9 -8 -8 -7 -7 -7 -6 -6 -5 -5 -4 ------------- Run | Yrd Mat Mat Min Exi Min Mat Fac Low Dat Pro Fac Fac DSF Fac Turns Passed 8666 | 96 197 198 179 242 512 1760 641 82 99 1012 2414 206 249 779 Spaces Moved 5500 | 67 220 232 162 251 348 748 463 75 95 810 1258 193 137 441 Core 22 | 15 . . . . . . . . . . . . . 7 Treads . | . . . . . . . . . . . . . . . Legs 4776 | 52 31 . . 132 348 748 463 75 95 810 1258 193 137 434 Wheels . | . . . . . . . . . . . . . . . Hover . | . . . . . . . . . . . . . . . Flight 702 | . 189 232 162 119 . . . . . . . . . . Fastest Speed 37 | 50 37 37 57 57 100 100 100 105 105 100 97 97 97 50 Average Speed 97 | 110 50 49 57 82 100 104 103 105 105 104 102 102 127 107 Slowest Speed 500 | 120 200 57 57 120 105 105 105 105 105 105 105 105 180 500 Overloaded Moves . | . . . . . . . . . . . . . . . Propulsion Burnouts . | . . . . . . . . . . . . . . . Robots Hopped 3 | . 1 2 . . . . . . . . . . . . Cave-ins Triggered . | . . . . . . . . . . . . . . . Exploration Rate (%) 39 | 5 29 31 50 63 67 33 8 9 74 85 25 5 92 12 Regions Visited 14 Branch Regions 6 Pre-discovered Areas 1 | . . . . . . . . . 1 . . . . . Known Exits Taken 5 | . . 1 1 1 1 . . . . . . 1 . . Unknown Exits Taken 8 | 1 1 . . . . 1 1 1 1 1 1 . . . Scrap Searched 6 | . . . . . . . . 1 . 5 . . . . Spaces Dug 10 | . . . . . . . . . . . 10 . . . Terrain Destroyed 63 | . . . . . . 10 . . . . 33 . 19 1 Melee . | . . . . . . . . . . . . . . . Projectile 16 | . . . . . . . . . . . 15 . . 1 AOE 47 | . . . . . . 10 . . . . 18 . 19 . Terrain Rammed . | . . . . . . . . . . . . . . . Walls Destroyed . | . . . . . . . . . . . . . . . Machines Disabled . | . . . . . . . . . . . . . . . Actions | -11 -10 -9 -9 -9 -8 -8 -7 -7 -7 -6 -6 -5 -5 -4 --------- Run | Yrd Mat Mat Min Exi Min Mat Fac Low Dat Pro Fac Fac DSF Fac Total 8489 | 88 284 282 248 288 494 1653 623 77 94 942 2298 200 187 731 Wait 2553 | 3 34 13 85 26 134 823 145 . . 78 945 . 14 253 Move 5480 | 66 217 227 161 250 347 747 462 74 94 809 1257 192 136 441 Hop 3 | . 1 2 . . . . . . . . . . . . Pick Up 104 | 12 5 9 1 5 2 14 8 1 . 16 15 2 8 6 Fast Attach . | . . . . . . . . . . . . . . . Attach 76 | 6 2 5 . 2 1 11 4 1 . 6 12 2 10 14 Detach 10 | . 1 1 . . . 3 1 . . . . 1 3 . Swap 19 | 1 1 1 . . . 1 . 1 . 4 5 2 1 2 Drop 45 | . 6 6 1 5 1 7 . . . 12 5 1 1 . Fire 184 | . 17 18 . . 9 47 2 . . 17 56 . 12 6 Melee . | . . . . . . . . . . . . . . . Ram . | . . . . . . . . . . . . . . . Kick 13 | . . . . . . . 1 . . . 3 . . 9 Crush . | . . . . . . . . . . . . . . . Escape Stasis 2 | . . . . . . . . . . . . . 2 . Rewire . | . . . . . . . . . . . . . . . Trap . | . . . . . . . . . . . . . . . Miscellaneous . | . . . . . . . . . . . . . . . Route ------- -11/Scrapyard -10/Materials -9/Materials -9/Mines -9/Exiles -8/Mines -8/Materials -7/Factory -7/Lower Caves -7/Data Miner -6/Proximity Caves -6/Factory -5/Factory -5/DSF -4/Factory (discovered 1 exit: [*Res]) History --------- Turn | Location | Event 11 | -11/Scrapyard | Discovered new exit (range 14) 97 | -11/Scrapyard | Entered Materials 263 | -10/Materials | Discovered new exit (range 17) 294 | -10/Materials | Entered another Materials area 294 | -9/Materials | Evolved 2 slots: Propulsion x2 351 | -9/Materials | Build established: Mutant 429 | -9/Materials | Discovered new exit (range 14) 492 | -9/Materials | Identified exit to Mines 492 | -9/Materials | Entered Mines 495 | -9/Mines | Received a Mining Laser from a helpful Derelict 501 | -9/Mines | Met a Derelict bent on vengeance 576 | -9/Mines | Learned Materials trap positions 636 | -9/Mines | Assisted by bots powering up and referring to "LRC-V3" 662 | -9/Mines | Deemed a non-threat by the Exiles lab entrance 663 | -9/Mines | Discovered new exit (range 5) 670 | -9/Mines | Identified exit to Exiles 671 | -9/Mines | Entered Exiles 671 | -9/Exiles | Accompanied by 4 allies 687 | -9/Exiles | Met 8R-AWN 697 | -9/Exiles | Met EX-HEX 714 | -9/Exiles | Met EX-BIN 721 | -9/Exiles | Aligned with FarCom system 721 | -9/Exiles | Given EX-Vault access code 735 | -9/Exiles | Opened EX-Vault 741 | -9/Exiles | Found Potential Leg 744 | -9/Exiles | Found Potential Leg 770 | -9/Exiles | Warned to stay clear of 0b10 Research branches 782 | -9/Exiles | Exiles lab attacked by MAIN.C 879 | -9/Exiles | Discovered new exit (range 12) 889 | -9/Exiles | Identified exit to Mines 913 | -9/Exiles | Left Exiles lab with Potential Leg 913 | -9/Exiles | Entered Mines 913 | -8/Mines | Accompanied by 3 allies 1204 | -8/Mines | Build established: Skirmisher 1223 | -8/Mines | Discovered new exit (range 9) 1403 | -8/Mines | Identified exit to Materials 1425 | -8/Mines | Entered Materials 1425 | -8/Materials | Evolved 2 slots: Utility x2 1426 | -8/Materials | Loaded intel: 21 trap records 3167 | -8/Materials | Discovered new exit (range 18) 3185 | -8/Materials | Entered Factory 3185 | -7/Factory | Evolved 2 slots: Power x1, Utility x1 3197 | -7/Factory | Lost 3 parts (1p1n1w) 3357 | -7/Factory | Build established: Scavenger-Mutant 3537 | -7/Factory | Discovered new exit (range 7) 3826 | -7/Factory | Entered Lower Caves 3906 | -7/Lower Caves | A Derelict revealed a hidden shortcut to meet someone special 3908 | -7/Lower Caves | Entered Data Miner 3908 | -7/Data Miner | Discovered new exit (range 7) 3924 | -7/Data Miner | Met Data Miner 3955 | -7/Data Miner | Learned location of Section 7 (-2) 3955 | -7/Data Miner | Acquired the access code to Warlord's prototype stash 3980 | -7/Data Miner | Received God Mode back door access code from Data Miner 4007 | -7/Data Miner | Entered Proximity Caves 4010 | -6/Proximity Caves | Spotter reported a threat 4010 | -6/Proximity Caves | Spotter reported a threat 4029 | -6/Proximity Caves | Found DCF Scrap (14 items) 4149 | -6/Proximity Caves | Build established: Mutant 4343 | -6/Proximity Caves | Spotter reported a threat 4460 | -6/Proximity Caves | Spotter reported a threat 4530 | -6/Proximity Caves | Spotter reported a threat 4543 | -6/Proximity Caves | Spotted B-75 Beast 4576 | -6/Proximity Caves | Spotter reported a threat 4601 | -6/Proximity Caves | Spotter reported a threat 4819 | -6/Proximity Caves | Spotter reported a threat 4874 | -6/Proximity Caves | Discovered new exit (range 8) 4882 | -6/Proximity Caves | Spotter reported a threat 5019 | -6/Proximity Caves | Entered Factory 5019 | -6/Factory | Evolved 2 slots: Utility x1, Weapon x1 5185 | -6/Factory | Build established: Derelict-Mutant 5369 | -6/Factory | Search patrols dispatched 5719 | -6/Factory | Search patrols dispatched 5842 | -6/Factory | Build established: Derelict-Tank 6412 | -6/Factory | Lost 6 parts (1p1n2u2w) 6742 | -6/Factory | Build established: Scavenger-Skirmisher 6978 | -6/Factory | Repaired Fission Core 7171 | -6/Factory | Build established: Skirmisher 7367 | -6/Factory | Discovered new exit (range 4) 7433 | -6/Factory | Entered another Factory area 7433 | -5/Factory | Evolved 2 slots: Power x1, Weapon x1 7639 | -5/Factory | Identified exit to DSF 7639 | -5/Factory | Entered DSF 7662 | -5/DSF | Additional patrols routed to DSF 7720 | -5/DSF | Wild Derelicts raided the area 7772 | -5/DSF | Lost 3 parts (1u2w) 7807 | -5/DSF | Discovered new exit (range 14) 7870 | -5/DSF | Sterilization system engaged 7876 | -5/DSF | Lost 3 parts (1p1n1u) 7888 | -5/DSF | Entered Factory 7888 | -4/Factory | Evolved 2 slots: Power x1, Propulsion x1 8026 | -4/Factory | Repaired Fission Core 8266 | -4/Factory | Lost 4 parts (1p1n1u1w) 8426 | -4/Factory | Repaired Lgt. Fission Core 8494 | -4/Factory | Repaired Imp. VSS Leg? 8649 | -4/Factory | Discovered new exit (range 16) 8652 | -4/Factory | Core integrity fell below 50% 8656 | -4/Factory | Core integrity fell below 20% 8667 | -4/Factory | Destroyed by P-70 Sage with Tesla Rifle Last Messages --------------- Slug penetrates Wall. R-10 Processor collects Welding Torch. U-05 Engineer lays Concrete. Adv. Visual Processing Unit destroyed. U-05 Engineer lays Concrete. R-10 Processor collects Imp. Cryofiber Web. Penetrated by Slug. Slug penetrates Wall. U-05 Engineer lays Concrete. R-10 Processor collects Corrupted Lgt. Antimatter Reactor. U-05 Engineer lays Concrete. Penetrated by Slug. Slug penetrates Wall. Penetrated by Slug. U-05 Engineer lays Concrete. R-10 Processor collects Lgt. Ion Engine. U-05 Engineer lays Concrete. Slug penetrates Wall. [Achievement: 5k Club] Map ----- +----------------------------------------------------+ | ?????????????????????????????????????????????????? | | ?????????????????????????????????????????????????? | | ?????????????????????????????????????????????????? | | ?????????????????????????????????????????????????? | | ?????????????????????????????????????????????????? | | ?????????????????????????????????????????????????? | | ?????????????????????????????????????????????????? | | ?????????????????????????????????????????????????? | | ?????????????????????????????????????????????????? | | ?????????????????????????????????????????????????? | | ?????????????????????????????????????????????????? | | ?????????????????????????????????????????????????? | | ?????????????????????????????????????????????????? | | ?????????????????????????????????????????????????? | | ?????????????????????????????????????????????????? | | ?????????????????????????????????????????????????? | | ?????????????????????????????????????????????????? | | ?????????????????????????????????????????????????? | | ????????????????????????###?????????????g????????? | | ????????????????????????* ??????????????????????? | | ???????????????????????? ??????????????????????? | | ???????????????????????? ! ??????????????????????? | | ????????????????????????# #??????????????????????? | | ??????????????????####### #??????????????????????? | | ??????????????????# ##/########???????????????? | | ??????????????????# ##@ #???????????????? | | ??????????????????# ## #???????????????? | | ??????????????????# ## % #???????????????? | | ????????????s?????# ## #???????????????? | | ??????????????????# ## x #???????????????? | | ????????s?????????# ##p #???????????????? | | ??????????????????# #;H % #???????????????? | | ??????????????????# % = t #???????????????? | | ??????????????????# % #???????????????? | | ??????????????????# %= hu######???????????????? | | ???????############ h ]]%x!]######## #??????????? | | ?????# h hh hpx +??????????? | | ?????# #### h RR ##########??????????? | | ???????????????# h ##??????????????????? | | ???????????????# ## % h#???????????????????? | | ???????????????#h## u +???????????????????? | | ???????????????# ## #???????????????????? | | ???????????????# ######### #???????????????????? | | ???????????????# #??????## #???????????????????? | | ???????????????# #???????# #???????????????????? | | ???????????????# #???????# #???????????????????? | | ???????????????# #???????# #???????????????????? | | ???????????????# #???????? #???????????????????? | | ???????????????# #???????? ???????????????????? | | ???????????????# #???????? ??????????????????? | +----------------------------------------------------+ Best States ------------- Heat Dissipation 57 Energy Generation 45 Energy Capacity 735 Matter Stores 300 Matter Capacity 300 Sight Range 20 Robot Scan Range 16 Terrain Scan Range 16 Terrain Scan Density 210 ECM Strength 2 Armor Coverage 225 Resistance: KI 30 Phase Shifting 5 Evasion (%) 62 Item Schematics ----------------- Combat Drone Bay | -7/Data Miner | Free Lgt. Regenerative Plating | -7/Data Miner | Free Biomechanical Wings | -7/Data Miner | Free Exp. Targeting Computer | -7/Data Miner | Free Cld. Plasma Cannon | -7/Data Miner | Free Field Propulsion Drive | -7/Data Miner | Free Adv. Trap Extractor | -7/Data Miner | Free Adv. Plasma Cannon | -7/Data Miner | Free Mni. Drone Bay | -7/Data Miner | Free Imp. Remote Datajack | -7/Data Miner | Free Field Propulsion Array | -7/Data Miner | Free Phase Gun | -7/Data Miner | Free Cloaking Device | -6/Factory | Hacked Robot Schematics ------------------ H-66 Slayer | -7/Data Miner | Free D-53 Grenadier | -7/Data Miner | Free L-41 Fighter | -7/Data Miner | Free H-55 Commando | -7/Data Miner | Free P-60 Hacker | -7/Data Miner | Free Fabricated ------------ Nothing Alien Tech Used ----------------- None Achievements -------------- 5k Club Hunted I'm Back, Baby! It's Just You Novice Programmer Part-time Mechanic The Oracle Challenges ------------ None Game ------ Seed TimingDeuteriumBooster Manual? 0 Play Time 02:48:30 Cumulative 6.5 hours Start 2024.11.16 @ 21:58:44 End 2024.11.17 @ 15:24:29 Sessions 3 Manual Loads 0 Difficulty Rogue Special Mode None Game No. 6 Rogue 6 Adventurer 0 Explorer 0 Win Type - Total 0 Types 0/0/0/0/0/0/0/0/0 Lore% 9 Gallery% 8 Achievement% 8 Wizard Run 0 Options --------- Layout 1 ASCII 0 Keyboard 0 Movement Mouse Keybinds 0 Fullscreen 1 Font 24/Smallcaps Map View 50x35 Zoom Use 0% Tactical HUD 0 Map Filters NONE Filters NONE Steam 1 RUN: c3be9d9d-39ae-44c5-9056-eaafcafa9a59